[Event "Klatovy Open-B 2024"]
[Site "Klatovy"]
[Date "2024.07.04"]
[Round "6.11"]
[White "Martinek, Lukas"]
[Black "Janouskova, Eliska"]
[Result "1/2-1/2"]
[ECO "B80"]
[WhiteElo "1698"]
[BlackElo "1670"]
[Annotator "NA RC"]
[PlyCount "52"]
[EventDate "2024.06.21"]
[EventType "swiss"]
[EventCountry "CZE"]
[SourceTitle "playchess.com"]
[Source "ChessBase"]
[SourceQuality "1"]
[TimeControl "40/7200:0"]

1. e4 {[%emt 0:00:00]} c5 {[%emt 0:00:00]} 2. Nf3 {[%emt 0:00:32]} e6 {[%emt 0:00:00]} 3. d4 {[%emt 0:01:00]} cxd4 {[%emt 0:00:00]} 4. Nxd4 {[%emt 0:01:33]} Nf6 {[%emt 0:00:00]} 5. Nc3 {[%emt 0:00:53]} d6 {[%emt 0:00:00]} 6. Be3 {[%emt 0:02:59]} a6 {[%emt 0:00:00]} 7. f3 {[%emt 0:00:51]} Be7 {[%emt 0:00:56]} 8. Qd2 {[%emt 0:00:44]} Qc7 {[%emt 0:01:55]} 9. g4 {[%emt 0:00:33]} b5 {[%emt 0:06:32]} 10. a3 {[%emt 0:01:41]} h6 {[%emt 0:02:35]} 11. h4 {[%emt 0:08:21]} Bb7 {[%emt 0:04:07]} 12. Qg2 {[%emt 0:03:30]} g6 {[%emt 0:11:12]} 13. Qd2 {[%emt 0:20:05]} h5 {[%emt 0:03:39]} 14. g5 {[%emt 0:00:48]} Nfd7 {[%emt 0:00:27]} 15. f4 {[%emt 0:04:51]} Nc5 {[%emt 0:02:04]} 16. Bg2 {[%emt 0:00:56]} Nc6 {[%emt 0:01:12]} 17. f5 {[%emt 0:01:57]} Nxd4 {[%emt 0:09:30]} 18. Bxd4 {[%emt 0:00:00]} Rg8 {[%emt 0:03:23]} 19. fxg6 {[%emt 0:05:45]} fxg6 {[%emt 0:00:19]} 20. Bf6 {[%emt 0:05:57]} O-O-O {[%emt 0:09:30]} 21. O-O-O {[%emt 0:00:31]} Rgf8 {[%emt 0:03:21]} 22. Bxe7 {[%emt 0:02:48]} Qxe7 {[%emt 0:00:00]} 23. b4 {[%emt 0:02:12]} Na4 {[%emt 0:01:58]} 24. Nxa4 {[%emt 0:03:27]} bxa4 {[%emt 0:00:00]} 25. Rhf1 {[%emt 0:01:27]} Qg7 {[%emt 0:03:52]} 26. Qd4 {[%emt 0:12:40]} Qxd4 {[%emt 0:01:02]} 1/2-1/2

[Event "Klatovy Open-B 2024"]
[Site "Klatovy"]
[Date "2024.07.04"]
[Round "6.12"]
[White "Sova, Zdenek"]
[Black "Vasko, Pavel"]
[Result "0-1"]
[ECO "D07"]
[WhiteElo "1822"]
[BlackElo "1655"]
[Annotator "NA RC"]
[PlyCount "116"]
[EventDate "2024.06.21"]
[EventType "swiss"]
[EventCountry "CZE"]
[SourceTitle "playchess.com"]
[Source "ChessBase"]
[SourceQuality "1"]
[TimeControl "40/7200:0"]

1. Nf3 {[%emt 0:00:00]} d5 {[%emt 0:00:00]} 2. d4 {[%emt 0:00:00]} Nc6 {[%emt 0:00:00]} 3. c4 {[%emt 0:00:00]} e6 {[%emt 0:00:00]} 4. e3 {[%emt 0:01:22]} Nf6 {[%emt 0:00:00]} 5. Nc3 {[%emt 0:00:00]} Be7 {[%emt 0:00:00]} 6. a3 {[%emt 0:00:00]} b6 {[%emt 0:00:00]} 7. cxd5 {[%emt 0:00:00]} exd5 {[%emt 0:00:00]} 8. Bd3 {[%emt 0:00:17]} O-O {[%emt 0:00:00]} 9. O-O {[%emt 0:00:00]} a6 {[%emt 0:01:44]} 10. b4 {[%emt 0:00:02]} Na7 {[%emt 0:01:03]} 11. Bb2 {[%emt 0:02:05]} h6 {[%emt 0:00:46]} 12. Qe2 {[%emt 0:03:55]} Nc6 {[%emt 0:01:29]} 13. Rac1 {[%emt 0:00:00]} Bb7 {[%emt 0:01:58]} 14. Bb1 {[%emt 0:02:06]} Bd6 {[%emt 0:00:13]} 15. Qd3 {[%emt 0:02:28]} Ne7 {[%emt 0:00:11]} 16. Ne5 {[%emt 0:02:05]} Qe8 {[%emt 0:03:46]} 17. Ng4 {[%emt 0:10:14]} Ng6 {[%emt 0:00:59]} 18. Nxf6+ {[%emt 0:00:00]} gxf6 {[%emt 0:00:00]} 19. Qf5 {[%emt 0:03:00]} Qe6 {[%emt 0:00:00]} 20. Qh5 {[%emt 0:00:00]} Kg7 {[%emt 0:00:00]} 21. Bf5 {[%emt 0:00:00]} Qe8 {[%emt 0:00:00]} 22. Qg4 {[%emt 0:06:31]} Rh8 {[%emt 0:03:05]} 23. g3 {[%emt 0:07:17]} Rd8 {[%emt 0:01:01]} 24. Rfe1 {[%emt 0:01:39]} Qg8 {[%emt 0:00:53]} 25. Qf3 {[%emt 0:01:48]} Ne7 {[%emt 0:05:52]} 26. Bh3 {[%emt 0:00:03]} Qh7 {[%emt 0:02:28]} 27. Bg2 {[%emt 0:04:24]} Qf5 {[%emt 0:01:30]} 28. Qd1 {[%emt 0:00:58]} h5 {[%emt 0:01:33]} 29. h4 {[%emt 0:00:12]} Qg6 {[%emt 0:02:01]} 30. e4 {[%emt 0:08:18]} c6 {[%emt 0:00:39]} 31. Na4 {[%emt 0:03:18]} b5 {[%emt 0:03:31]} 32. Nc5 {[%emt 0:00:00]} Bc8 {[%emt 0:00:00]} 33. Re3 {[%emt 0:04:54]} Kf8 {[%emt 0:02:20]} 34. Qe1 {[%emt 0:02:39]} Rg8 {[%emt 0:01:08]} 35. Nb3 {[%emt 0:05:20]} Bf4 {[%emt 0:00:45]} 36. exd5 {[%emt 0:02:43]} Bxe3 {[%emt 0:02:20]} 37. Qxe3 {[%emt 0:00:29]} Nxd5 {[%emt 0:00:20]} 38. Bxd5 {[%emt 0:01:13]} cxd5 {[%emt 0:00:00]} 39. Re1 {[%emt 0:00:38]} Be6 {[%emt 0:01:27]} 40. Nc5 {[%emt 0:00:02]} Rd6 {[%emt 0:00:08]} 41. Qf4 {[%emt 2:00:28]} Ke7 {[%emt 2:00:46]} 42. Nb7 {[%emt 0:04:26]} Rc6 {[%emt 0:00:00]} 43. Na5 {[%emt 0:00:10]} Rc2 {[%emt 0:09:33]} 44. Bc1 {[%emt 0:01:13]} Qg4 {[%emt 0:00:00]} 45. Nb7 {[%emt 0:07:32]} Qxf4 {[%emt 0:00:00]} 46. Bxf4 {[%emt 0:00:00]} Rc3 {[%emt 0:03:04]} 47. Re3 {[%emt 0:00:21]} Rc1+ {[%emt 0:01:29]} 48. Kg2 {[%emt 0:00:08]} Rd1 {[%emt 0:00:00]} 49. Bd6+ {[%emt 0:02:03]} Kd7 {[%emt 0:00:00]} 50. Bc5 {[%emt 0:00:00]} Rg4 {[%emt 0:01:04]} 51. Rc3 {[%emt 0:01:29]} Bf5 {[%emt 0:02:39]} 52. Nd6 {[%emt 0:05:00]} Bd3 {[%emt 0:01:05]} 53. Nxf7 {[%emt 0:01:00]} Re4 {[%emt 0:00:00]} 54. Nd6 {[%emt 0:01:43]} Ree1 {[%emt 0:00:00]} 55. Rb3 {[%emt 0:01:00]} f5 {[%emt 0:04:18]} 56. Rc3 {[%emt 0:00:00]} Be4+ {[%emt 0:01:54]} 57. Nxe4 {[%emt 0:00:00]} fxe4 {[%emt 0:50:58]} 58. Bb6 {[%emt 0:00:12]} Rg1+ {[%emt 0:00:00]} 0-1

[Event "Klatovy Open-B 2024"]
[Site "Klatovy"]
[Date "2024.07.04"]
[Round "6.13"]
[White "Vrzal, Vaclav"]
[Black "Lickova, Anna"]
[Result "1-0"]
[ECO "C29"]
[WhiteElo "1682"]
[BlackElo "1725"]
[Annotator "NA RC"]
[PlyCount "117"]
[EventDate "2024.06.21"]
[EventType "swiss"]
[EventCountry "CZE"]
[SourceTitle "playchess.com"]
[Source "ChessBase"]
[SourceQuality "1"]
[TimeControl "40/7200:0"]

1. e4 {[%emt 0:00:00]} e5 {[%emt 0:00:00]} 2. Nc3 {[%emt 0:00:00]} Nf6 {[%emt 0:00:00]} 3. f4 {[%emt 0:00:00]} d5 {[%emt 0:00:00]} 4. fxe5 {[%emt 0:00:00]} Nxe4 {[%emt 0:00:00]} 5. Qf3 {[%emt 0:00:00]} Nxc3 {[%emt 0:00:53]} 6. bxc3 {[%emt 0:00:00]} Be6 {[%emt 0:03:54]} 7. d4 {[%emt 0:00:00]} c5 {[%emt 0:04:02]} 8. Bd3 {[%emt 0:00:00]} cxd4 {[%emt 0:01:19]} 9. cxd4 {[%emt 0:00:00]} Qa5+ {[%emt 0:01:08]} 10. Bd2 {[%emt 0:12:49]} Bb4 {[%emt 0:01:21]} 11. Qf4 {[%emt 0:00:22]} Nc6 {[%emt 0:04:20]} 12. Nf3 {[%emt 0:02:04]} O-O {[%emt 0:09:24]} 13. O-O {[%emt 0:11:43]} Bxd2 {[%emt 0:05:59]} 14. Nxd2 {[%emt 0:00:41]} Nxd4 {[%emt 0:06:23]} 15. Qxd4 {[%emt 0:00:00]} Rfc8 {[%emt 0:14:05]} 16. Nf3 {[%emt 0:03:25]} h6 {[%emt 0:01:20]} 17. Rab1 {[%emt 0:03:56]} Rc7 {[%emt 0:02:11]} 18. Rb5 {[%emt 0:02:38]} Qa3 {[%emt 0:00:04]} 19. Qb4 {[%emt 0:00:48]} Qxb4 {[%emt 0:02:51]} 20. Rxb4 {[%emt 0:00:00]} b6 {[%emt 0:00:21]} 21. Nd4 {[%emt 0:02:07]} Bd7 {[%emt 0:00:11]} 22. Nb5 {[%emt 0:00:16]} Bxb5 {[%emt 0:00:00]} 23. Rxb5 {[%emt 0:00:00]} Rd7 {[%emt 0:00:09]} 24. Rd1 {[%emt 0:01:18]} Re8 {[%emt 0:00:52]} 25. Bf5 {[%emt 0:00:24]} Rc7 {[%emt 0:01:27]} 26. Rbxd5 {[%emt 0:00:08]} g6 {[%emt 0:00:30]} 27. Bd3 {[%emt 0:03:18]} Rce7 {[%emt 0:02:11]} 28. Bb5 {[%emt 0:01:52]} Rc8 {[%emt 0:00:01]} 29. Rd8+ {[%emt 0:00:37]} Rxd8 {[%emt 0:00:00]} 30. Rxd8+ {[%emt 0:00:00]} Kg7 {[%emt 0:00:00]} 31. Rd7 {[%emt 0:01:10]} Rxe5 {[%emt 0:00:00]} 32. Bc4 {[%emt 0:00:12]} Rf5 {[%emt 0:00:00]} 33. Rxa7 {[%emt 0:00:14]} b5 {[%emt 0:00:00]} 34. Bb3 {[%emt 0:01:22]} g5 {[%emt 0:00:00]} 35. c4 {[%emt 0:00:37]} bxc4 {[%emt 0:00:00]} 36. Bxc4 {[%emt 0:00:00]} Rf4 {[%emt 0:01:01]} 37. Rxf7+ {[%emt 0:01:49]} Rxf7 {[%emt 0:00:00]} 38. Bxf7 {[%emt 0:00:00]} Kxf7 {[%emt 0:00:00]} 39. Kf2 {[%emt 0:00:00]} Ke6 {[%emt 0:00:00]} 40. Kf3 {[%emt 0:00:00]} Kd5 {[%emt 0:00:00]} 41. Kg4 {[%emt 1:58:39]} Kc4 {[%emt 1:59:03]} 42. Kh5 {[%emt 0:00:00]} Kb4 {[%emt 0:00:00]} 43. g4 {[%emt 0:00:00]} Ka3 {[%emt 0:00:00]} 44. Kxh6 {[%emt 0:00:00]} Kxa2 {[%emt 0:00:00]} 45. Kxg5 {[%emt 0:00:00]} Kb3 {[%emt 0:00:00]} 46. Kf6 {[%emt 0:00:00]} Kc4 {[%emt 0:00:00]} 47. g5 {[%emt 0:00:00]} Kd4 {[%emt 0:00:00]} 48. g6 {[%emt 0:00:00]} Ke4 {[%emt 0:00:00]} 49. g7 {[%emt 0:00:00]} Kf4 {[%emt 0:00:00]} 50. g8=Q {[%emt 0:00:00]} Ke4 {[%emt 0:00:00]} 51. Qg5 {[%emt 0:00:00]} Kf3 {[%emt 0:00:00]} 52. Kf5 {[%emt 0:00:00]} Kf2 {[%emt 0:00:00]} 53. Qg3+ {[%emt 0:00:00]} Ke2 {[%emt 0:00:00]} 54. Kf4 {[%emt 0:00:00]} Kf1 {[%emt 0:00:00]} 55. h4 {[%emt 0:00:00]} Ke2 {[%emt 0:00:00]} 56. Ke4 {[%emt 0:00:00]} Kf1 {[%emt 0:00:00]} 57. Qh2 {[%emt 0:00:00]} Ke1 {[%emt 0:00:00]} 58. Ke3 {[%emt 0:00:00]} Kd1 {[%emt 0:00:00]} 59. Qd2# {[%emt 0:00:00]} 1-0

[Event "Klatovy Open-B 2024"]
[Site "Klatovy"]
[Date "2024.07.04"]
[Round "6.14"]
[White "Trejbal, Jindrich"]
[Black "Vavrousek, Petr"]
[Result "1-0"]
[ECO "C01"]
[WhiteElo "1953"]
[BlackElo "1710"]
[Annotator "NA RC"]
[PlyCount "58"]
[EventDate "2024.06.21"]
[EventType "swiss"]
[EventCountry "CZE"]
[SourceTitle "playchess.com"]
[Source "ChessBase"]
[SourceQuality "1"]
[TimeControl "40/7200:0"]

1. e4 {[%emt 0:00:00]} e6 {[%emt 0:00:58]} 2. d4 {[%emt 0:00:00]} d5 {[%emt 0:00:00]} 3. Nc3 {[%emt 0:00:00]} Nf6 {[%emt 0:00:00]} 4. exd5 {[%emt 0:00:00]} exd5 {[%emt 0:00:00]} 5. Bd3 {[%emt 0:00:31]} Bb4 {[%emt 0:01:04]} 6. h3 {[%emt 0:02:34]} O-O {[%emt 0:00:00]} 7. Nge2 {[%emt 0:01:31]} Ne4 {[%emt 0:07:40]} 8. a3 {[%emt 0:03:33]} Nxc3 {[%emt 0:01:03]} 9. Nxc3 {[%emt 0:00:31]} Ba5 {[%emt 0:04:52]} 10. O-O {[%emt 0:01:17]} c6 {[%emt 0:04:05]} 11. Bf4 {[%emt 0:04:57]} Nd7 {[%emt 0:00:00]} 12. b4 {[%emt 0:02:48]} Bb6 {[%emt 0:01:12]} 13. Na4 {[%emt 0:01:37]} Qf6 {[%emt 0:01:02]} 14. Nxb6 {[%emt 0:01:08]} axb6 {[%emt 0:01:39]} 15. Bg3 {[%emt 0:01:08]} c5 {[%emt 0:02:12]} 16. c3 {[%emt 0:04:18]} Re8 {[%emt 0:05:04]} 17. Qh5 {[%emt 0:03:46]} Nf8 {[%emt 0:04:50]} 18. Be5 {[%emt 0:07:36]} Qd8 {[%emt 0:03:38]} 19. Rfe1 {[%emt 0:10:36]} c4 {[%emt 0:06:47]} 20. Bc2 {[%emt 0:01:46]} Bd7 {[%emt 0:00:00]} 21. a4 {[%emt 0:10:41]} f6 {[%emt 0:03:36]} 22. Bd6 {[%emt 0:04:10]} Rxe1+ {[%emt 0:00:03]} 23. Rxe1 {[%emt 0:00:00]} Be8 {[%emt 0:07:14]} 24. Qxd5+ {[%emt 0:08:04]} Bf7 {[%emt 0:00:00]} 25. Qxb7 {[%emt 0:00:38]} Ng6 {[%emt 0:08:49]} 26. Qc7 {[%emt 0:06:49]} Qxc7 {[%emt 0:02:47]} 27. Bxc7 {[%emt 0:00:00]} b5 {[%emt 0:03:39]} 28. a5 {[%emt 0:01:19]} Bd5 {[%emt 0:00:00]} 29. Be4 {[%emt 0:01:08]} Nf4 {[%emt 0:47:46]} 1-0